{"text_format":"1","workbook":"xlsx","n_sheets":13,"sheets":["50 Край","65 Край","65 ЮФО","85 Край","85 ЮФО","125 Ю Край","125 Ю 2Т ЮФО","125 Ю 4Т ЮФО","125 М Край","125 М ЮФО","250 Край","250 ЮФО","МАСТЕР"],"not_rendered":{"charts":0,"images":6,"macros":0,"external_links":0,"defined_names":13,"comments":0,"pivot_tables":0},"unopened":[],"bounds":{"document_bytes":16777216,"sheet_cells":100000,"rows_first":2000,"rows_last":500,"rows_between":2000,"halvings":0,"cell_chars":16384,"cell_head_chars":4096},"cells_cut":0,"cells_raw":0,"read":"whole","date_system":"1900"}

{"sheet":"50 Край","index":0,"n_rows":20,"n_cols":12,"rows_kept":20,"cut":false,"hidden":false,"merged":[[15,5,15,11],[18,5,18,11],[7,6,9,6],[7,7,7,8],[7,9,7,10],[7,11,9,11],[7,5,9,5],[7,0,9,0],[7,1,9,1],[7,2,9,2],[7,3,9,3],[7,4,9,4],[5,0,5,11],[0,0,0,11],[1,0,1,11],[2,2,2,10],[3,0,3,11],[4,0,4,11]]}
["\n                                                                                                "]
[" Показательные выступления в рамках Первенства Краснодарского края по мотокроссу 2017 года - I-й этап."]
[null,null,"(Код мотоспорта:0910007511Я)"]
["ПРОТОКОЛ ЛИЧНОГО ЗАЧЕТА"]
["ВДЦ \"Орленок\" (Краснодарский край, Туапсинский район, п. Новомихайловский).      28 апреля - 01 мая 2017 г."]
["Класс 50 куб. см. (младшие мальчики)"]
[]
["Место","Ст. №","Фамилия,  Имя","Разряд","Город (край, район, область)","Команда","Мото","I-й заезд",null,"II-й заезд",null,"Сум Очк"]
[null,null,null,null,null,null,null,"мес","лич.","мес","лич."]
[null,null,null,null,null,null,null,"то","очк.","то","очк."]
[1,16,"Кариков Дмитрий","б/р","г. Сочи, Краснодарский край","ООО \"Вертикаль\"","КТМ",3,20,1,25,{"$f":"SUM(I11+K11)","v":45}]
[2,28,"Захаров Тимофей","б/р","г. Краснодар","\"Сибирь\"","КТМ",1,25,3,20,{"$f":"SUM(I12+K12)","v":45}]
[3,15,"Ганеев Матвей","б/р","г. Южно-Сахалинск","лично","КТМ",2,22,2,22,{"$f":"SUM(I13+K13)","v":44}]
[4,25,"Михеев Владимир","б/р","г. Горячий Ключ, Краснодарский край","лично","КТМ",4,18,4,18,{"$f":"SUM(I14+K14)","v":36}]
[]
["Главный судья соревнований"]
["судья Всероссийской категории:                                  Г. И. Истратов (г. Москва; свидетельство МФР А 101)"]
[]
["Главный секретарь"]
["судья Всероссийской категории:                А. Ю. Иванов (г. Москва, свидетельство МФР А 105; FIM 11245)      "]

{"sheet":"65 Край","index":1,"n_rows":31,"n_cols":12,"rows_kept":31,"cut":false,"hidden":false,"merged":[[7,6,9,6],[7,7,7,8],[7,9,7,10],[7,11,9,11],[7,5,9,5],[30,0,30,11],[27,0,27,11],[7,1,9,1],[5,0,5,11],[0,0,0,11],[1,0,1,11],[2,2,2,10],[3,0,3,11],[4,0,4,11],[7,0,9,0],[7,2,9,2],[7,3,9,3],[7,4,9,4],[26,5,26,11],[29,5,29,11]]}
["                                                                                                "]
["Первенство Краснодарского края по мотокроссу 2017 года - I-й этап."]
[null,null,"(Код мотоспорта:0910007511Я)"]
["ПРОТОКОЛ ЛИЧНОГО ЗАЧЕТА"]
["ВДЦ \"Орленок\" (Краснодарский край, Туапсинский район, п. Новомихайловский).      28 апреля - 01 мая 2017 г."]
["Класс 65 куб. см. (мальчики)"]
[]
["Место","Ст. №","Фамилия,  Имя","Разряд","Город (край, район, область)","Команда","Мото","I-й заезд",null,"II-й заезд",null,"Сум Очк"]
[null,null,null,null,null,null,null,"мес","лич.","мес","лич."]
[null,null,null,null,null,null,null,"то","очк.","то","очк."]
[1,600,"Федорцов Александр","II","г. Железноводск, Ставропольский край","Сборная Ямало-Ненецкого АО \"ГАЗПРОМНЕФТЬ\"","КТМ",1,25,1,25,{"$f":"K11+I11","v":50}]
[2,749,"Дубатовкин Иван","I ","г. Ставрополь","СК \"Ставрополье\"","КТМ",2,22,2,22,44]
[3,51,"Авраменко Вячеслав","III","ст. Ленинградская, Краснодарский край","ДОСААФ ст. Выселки","КТМ",5,16,3,20,36]
[4,700,"Орлов Александр","III","г. Краснодар","Автошкола Славянска-на-Кубани","КТМ",3,20,7,14,34]
[5,153,"Кучаев Тимур","III","г. Краснодар","\"Amto Pro\"","КТМ",6,15,4,18,33]
[6,63,"Калентеев Александр","б/р","г. Углегорск, Сахалинская область","лично","Kaw",8,13,5,16,29]
[7,171,"Охрименко Олег","б/р","г. Сочи, Краснодарский край","лично","КТМ",7,14,10,11,25]
[8,595,"Джеус Хрисанф","III","г. Краснодар","ВДЦ \"Орленок\"","КТМ",12,9,8,13,22]
[9,771,"Марков Михаил","б/р","ст. Старокорсунская, Краснодарский край","МФФК","КТМ",15,6,6,15,21]
[10,222,"Джеус Дарья","III","г. Краснодар","ВДЦ \"Орленок\"","КТМ",13,8,9,12,20]
[11,739,"Дрофичев Матвей","б/р","г. Сочи, Краснодарский край","\"Центр технических видов спорта\"","КТМ",4,18,"сх",0,18]
[12,61,"Боровский Виталий","б/р","г. Углегорск, Сахалинская область","лично","КТМ",14,7,11,10,17]
[13,91,"Москалюк Владислав","III","г. Батайск, Ростовская область","\"Батайск\"","КТМ",16,5,12,9,14]
[14,401,"Черничко Андрей","б/р","п. Новомихайловский, Краснодарский край","Байк клуб \"Пауки дорог\"","КТМ",9,12,"сх",0,12]
[15,41,"Снаговский Максим","I юн","г. Волжский, Волгоградская область","Волжская АШ ДОСААФ","КТМ",10,11,"сх",0,11]
[16,125,"Курдюков Елисей","III","г. Элиста, Республика Калмыкия","СТК \"Искра\" ДОСААФ ","КТМ",11,10,"сх",0,10]
["Главный судья соревнований"]
["судья Всероссийской категории:                                  Г. И. Истратов (г. Москва; свидетельство МФР А 101)"]
[]
["Главный секретарь"]
["судья Всероссийской категории:                  А. Ю. Иванов (г. Москва, свидетельство МФР А 105; FIM 11245)      "]

{"sheet":"65 ЮФО","index":2,"n_rows":24,"n_cols":12,"rows_kept":24,"cut":false,"hidden":false,"merged":[[20,0,20,11],[22,5,22,11],[23,0,23,11],[7,5,9,5],[7,6,9,6],[7,7,7,8],[7,9,7,10],[7,11,9,11],[19,5,19,11],[7,0,9,0],[7,1,9,1],[7,2,9,2],[7,3,9,3],[7,4,9,4],[5,0,5,11],[0,0,0,11],[1,0,1,11],[2,2,2,10],[3,0,3,11],[4,0,4,11]]}
["                                                                                                "]
["Первенство Южного Федерального округа по мотокроссу 2017 года - II-й этап."]
[null,null,"(Код мотоспорта:0910007511Я)"]
["ПРОТОКОЛ ЛИЧНОГО ЗАЧЕТА"]
["ВДЦ \"Орленок\" (Краснодарский край, Туапсинский район, п. Новомихайловский).      28 апреля - 01 мая 2017 г."]
["Класс 65 куб. см. (мальчики)"]
[]
["Место","Ст. №","Фамилия,  Имя","Разряд","Город (край, район, область)","Команда","Мото","I-й заезд",null,"II-й заезд",null,"Сум Очк"]
[null,null,null,null,null,null,null,"мес","лич.","мес","лич."]
[null,null,null,null,null,null,null,"то","очк.","то","очк."]
[1,749,"Дубатовкин Иван","I ","г. Ставрополь","СК \"Ставрополье\"","КТМ",1,25,1,25,{"$f":"K11+I11","v":50}]
[2,51,"Авраменко Вячеслав","III","ст. Ленинградская, Краснодарский край","ДОСААФ ст. Выселки","КТМ",3,20,2,22,42]
[3,700,"Орлов Александр","III","г. Краснодар","Автошкола Славянска-на-Кубани","КТМ",2,22,4,18,40]
[4,153,"Кучаев Тимур","III","г. Краснодар","\"Amto Pro\"","КТМ",4,18,3,20,38]
[5,595,"Джеус Хрисанф","III","г. Краснодар","ВДЦ \"Орленок\"","КТМ",7,14,5,16,30]
[6,222,"Джеус Дарья","III","г. Краснодар","ВДЦ \"Орленок\"","КТМ",8,13,6,15,28]
[7,91,"Москалюк Владислав","III","г. Батайск, Ростовская область","\"Батайск\"","КТМ",9,12,7,14,26]
[8,41,"Снаговский Максим","I юн","г. Волжский, Волгоградская область","Волжская АШ ДОСААФ","КТМ",5,16,"сх",0,16]
[9,125,"Курдюков Елисей","III","г. Элиста, Республика Калмыкия","СТК \"Искра\" ДОСААФ ","КТМ",6,15,"сх",0,15]
["Главный судья соревнований"]
["судья Всероссийской категории:                                  Г. И. Истратов (г. Москва; свидетельство МФР А 101)"]
[]
["Главный секретарь"]
["судья Всероссийской категории:                  А. Ю. Иванов (г. Москва, свидетельство МФР А 105; FIM 11245)      "]

{"sheet":"85 Край","index":3,"n_rows":33,"n_cols":12,"rows_kept":33,"cut":false,"hidden":false,"merged":[[32,0,32,11],[7,6,9,6],[7,7,7,8],[7,9,7,10],[7,11,9,11],[28,5,28,11],[5,0,5,11],[7,1,9,1],[7,2,9,2],[7,3,9,3],[31,5,31,11],[7,5,9,5],[7,0,9,0],[7,4,9,4],[29,0,29,11],[0,0,0,11],[1,0,1,11],[2,1,2,10],[3,0,3,11],[4,0,4,11]]}
["                                                                                                "]
["Первенство Краснодарского края по мотокроссу 2017 года - I-й этап."]
[null,"(Код мотоспорта:0910007511Я)"]
["ПРОТОКОЛ ЛИЧНОГО ЗАЧЕТА"]
["ВДЦ \"Орленок\" (Краснодарский край, Туапсинский район, п. Новомихайловский).      28 апреля - 01 мая 2017 г."]
["Класс 85 куб. см. (мальчики)"]
[]
["Место","Ст. №","Фамилия,  Имя","Разряд","Город (край, район, область)","Команда","Мото","I-й заезд",null,"II-й заезд",null,"Сум очк"]
[null,null,null,null,null,null,null,"мес","лич.","мес","лич."]
[null,null,null,null,null,null,null,"то","очк","то","очк"]
[1,747,"Орлов Алексей","I ","г. Краснодар","ГБУ КК \"РЦСП №1\"/Автошкола г. Славянск-на-Кубани","Husq",1,25,1,25,{"$f":"K11+I11","v":50}]
[2,177,"Стрелков Даниил","I","Краснодарский край","Автошкола Славянск-на-Кубани","КТМ ",3,20,2,22,42]
[3,795,"Кесов Даниил","I","г. Краснодар","ГБУ КК \"РЦСП №1\"/ДЮСШ Выселки","КТМ",2,22,3,20,42]
[4,715,"Варнавский Данил","I","г. Кумертау, Республика Башкортостан","СТК \"Горняк\"","Husq",5,16,4,18,34]
[5,63,"Чун Максим","б/р"," г. Углегорск, Сахалинская область","лично","Kaw",6,15,6,15,30]
[6,742,"Осипов Ярослав","I ","х. Ольховский, Краснодарский край","Клуб \"Скиф\"","KTM",7,14,7,14,28]
[7,49,"Савин Артем","б/р","г. Краснодар","лично","KTM",9,12,8,13,25]
[8,14,"Ваганов Артем","б/р","г. Сочи, Краснодарский край","\"Центр технических видов спорта\"","KTM",8,13,9,12,25]
[9,247,"Погорелая Софья","III","г. Анапа, Краснодарский край","лично","Yam",11,10,11,10,20]
[10,89,"Динека Александр","б/р","г. Сочи, Краснодарский край","ООО \"Вертикаль\"","KTM",13,8,10,11,19]
[11,711,"Трофимов Роман","III","г. Элиста, Республика Калмыкия","СТК \"Искра\" ДОСААФ","KTM",10,11,13,8,19]
[12,191,"Киричко Николай","II","г. Гулькевичи, Краснодарский край","СК \"Ставрополье\"","КТМ ",4,18,"сх",0,18]
[13,45,"Юдин Дмитрий","I юн","р.п. Светлый Яр, Волгоградская обл.","СТК \"АлИг Светлый Яр\"","Yam",12,9,12,9,18]
[14,7,"Огурцов Константин","б/р","г. Славянск-на-Кубани, Краснодарский край","АШ ДОСААФ","KTM","сх",0,5,16,16]
[15,43,"Дешевой Никита","III","р.п. Светлый Яр, Волгоградская обл.","СТК \"АлИг Светлый Яр\"","Hon",14,7,14,7,14]
[16,787,"Дуболазов Данил","б/р","г. Славянск-на-Кубани, Краснодарский край","АШ ДОСААФ \"Лотос\"","KTM",15,6,15,6,12]
[]
[]
["Главный судья соревнований"]
["судья Всероссийской категории:                                  Г. И. Истратов (г. Москва; свидетельство МФР А 101)"]
[]
["Главный секретарь"]
["судья Всероссийской категории:                  А. Ю. Иванов (г. Москва, свидетельство МФР А 105; FIM 11245)      "]

{"sheet":"85 ЮФО","index":4,"n_rows":25,"n_cols":12,"rows_kept":25,"cut":false,"hidden":false,"merged":[[21,0,21,11],[23,5,23,11],[24,0,24,11],[7,5,9,5],[7,6,9,6],[7,7,7,8],[7,9,7,10],[7,11,9,11],[20,5,20,11],[7,0,9,0],[7,1,9,1],[7,2,9,2],[7,3,9,3],[7,4,9,4],[5,0,5,11],[0,0,0,11],[1,0,1,11],[2,1,2,10],[3,0,3,11],[4,0,4,11]]}
["                                                                                                "]
["Первенство Южного Федерального округа по мотокроссу 2017 года - II-й этап."]
[null,"(Код мотоспорта:0910007511Я)"]
["ПРОТОКОЛ ЛИЧНОГО ЗАЧЕТА"]
["ВДЦ \"Орленок\" (Краснодарский край, Туапсинский район, п. Новомихайловский).      28 апреля - 01 мая 2017 г."]
["Класс 85 куб. см. (мальчики)"]
[]
["Место","Ст. №","Фамилия,  Имя","Разряд","Город (край, район, область)","Команда","Мото","I-й заезд",null,"II-й заезд",null,"Сум очк"]
[null,null,null,null,null,null,null,"мес","лич.","мес","лич."]
[null,null,null,null,null,null,null,"то","очк","то","очк"]
[1,747,"Орлов Алексей","I ","г. Краснодар","ГБУ КК \"РЦСП №1\"/Автошкола г. Славянск-на-Кубани","Husq",1,25,1,25,{"$f":"K11+I11","v":50}]
[2,177,"Стрелков Даниил","I","Краснодарский край","Автошкола Славянск-на-Кубани","КТМ ",3,20,2,22,42]
[3,795,"Кесов Даниил","I","г. Краснодар","ГБУ КК \"РЦСП №1\"/ДЮСШ Выселки","КТМ",2,22,3,20,42]
[4,247,"Погорелая Софья","III","г. Анапа, Краснодарский край","лично","Yam",6,15,4,18,33]
[5,711,"Трофимов Роман","III","г. Элиста, Республика Калмыкия","СТК \"Искра\" ДОСААФ","KTM",5,16,6,15,31]
[6,45,"Юдин Дмитрий","I юн","р.п. Светлый Яр, Волгоградская обл.","СТК \"АлИг Светлый Яр\"","Yam",7,14,5,16,30]
[7,43,"Дешевой Никита","III","р.п. Светлый Яр, Волгоградская обл.","СТК \"АлИг Светлый Яр\"","Hon",8,13,7,14,27]
[8,191,"Киричко Николай","II","г. Гулькевичи, Краснодарский край","СК \"Ставрополье\"","КТМ ",4,18,"сх",0,18]
[]
[]
["Главный судья соревнований"]
["судья Всероссийской категории:                                  Г. И. Истратов (г. Москва; свидетельство МФР А 101)"]
[]
["Главный секретарь"]
["судья Всероссийской категории:                  А. Ю. Иванов (г. Москва, свидетельство МФР А 105; FIM 11245)      "]

{"sheet":"125 Ю Край","index":5,"n_rows":27,"n_cols":12,"rows_kept":27,"cut":false,"hidden":false,"merged":[[26,0,26,11],[7,6,9,6],[7,7,7,8],[7,9,7,10],[7,11,9,11],[22,5,22,11],[5,0,5,11],[7,1,9,1],[7,2,9,2],[7,3,9,3],[25,5,25,11],[7,5,9,5],[7,0,9,0],[7,4,9,4],[23,0,23,11],[0,0,0,11],[1,0,1,11],[2,1,2,10],[3,0,3,11],[4,0,4,11]]}
["                                                                                                "]
["Первенство Краснодарского края по мотокроссу 2017 года - I-й этап."]
[null,"(Код мотоспорта: 0910007511Я)"]
["ПРОТОКОЛ ЛИЧНОГО ЗАЧЕТА"]
["ВДЦ \"Орленок\" (Краснодарский край, Туапсинский район, п. Новомихайловский).                                                                                                     28 апреля - 01 мая 2017 г."]
["Класс 125 куб.см. 2Т \"Юноши\" и 4Т \"Юниоры\" (0910161811Г)"]
[]
["Место","Ст. №","Фамилия,  Имя","Разряд","Город (край, район, область)","Команда","Мото","I-й заезд",null,"II-й заезд",null,"Сум очк"]
[null,null,null,null,null,null,null,"мес","лич.","мес","лич."]
[null,null,null,null,null,null,null,"то","очк","то","очк"]
[1,701,"Проненко Святослав","кмс","г. Тимашевск, Краснодарский край","ГБУ КК \"РЦСП №1\"","КТМ",1,25,1,25,{"$f":"SUM(I11+K11)","v":50}]
[2,474,"Пульбери Максим","II","г. Анапа, Краснодарский край","лично","KTM",3,20,3,20,40]
[3,63,"Ким Никита","кмс","г. Углегорск, Сахалинская область","лично","Kaw",4,18,4,18,36]
[4,14,"Бурмистров Александр","II","п. Архипо-Осиповка, Краснодарский край","ДОСААФ","Husq",11,10,2,22,32]
[5,44,"Шкурихин Никита","б/р","ст. Полтавская, Краснодарский край","\"СКИФ\"","KTM",6,15,5,16,31]
[6,22,"Фомин Данил","б/р","г. Усть-Лабинск, Краснодарский край","ДОСААФ Выселки","Kaw",5,16,6,15,31]
[7,150,"Богданов Никита","II","г. Анапа, Краснодарский край","АНО СК \"Патриот\"","KTM",7,14,7,14,28]
[8,740,"Собур Владислав","I","г. Славянск-на-Кубани, Краснодарский край","АШ ДОСААФ","Yam",8,13,8,13,26]
[9,32,"Григорьев Григорий","б/р","г. Анапа, Краснодарский край","АНО СК \"Патриот\"","Yam",9,12,9,12,24]
[10,277,"Стрелков Алексей","I ","г. Славянск-на-Кубани, Краснодарский край","ГБУ КК \"РЦСП №1\"/Автошкола Славянск-на-Кубани","КТМ",2,22,"н/с",0,22]
[11,773,"Черкасов Георгий","б/р","г. Сочи, Краснодарский край","ЦТВС \"Сочи\"","Yam",10,11,10,11,22]
[12,97,"Вишневская Татьяна","б/р","г. Славянск-на-Кубани, Краснодарский край","\"Лотос\"","KTM",12,9,11,10,19]
["Главный судья соревнований"]
["судья Всероссийской категории:                                  Г. И. Истратов (г. Москва; свидетельство МФР А 101)"]
[]
["Главный секретарь"]
["судья Всероссийской категории:                  А. Ю. Иванов (г. Москва, свидетельство МФР А 105; FIM 11245)      "]

{"sheet":"125 Ю 2Т ЮФО","index":6,"n_rows":19,"n_cols":12,"rows_kept":19,"cut":false,"hidden":false,"merged":[[14,5,14,11],[15,0,15,11],[17,5,17,11],[18,0,18,11],[7,4,9,4],[7,5,9,5],[7,6,9,6],[7,7,7,8],[7,9,7,10],[7,11,9,11],[7,0,9,0],[7,1,9,1],[7,2,9,2],[7,3,9,3],[5,0,5,11],[0,0,0,11],[1,0,1,11],[3,0,3,11],[4,0,4,11],[2,0,2,11]]}
["                                                                                                "]
["Показательные выступления в рамках Первенства Южного Федерального округа по мотокроссу 2017 года - II-й этап."]
["(Код мотоспорта: 0910007511Я)"]
["ПРОТОКОЛ ЛИЧНОГО ЗАЧЕТА"]
["ВДЦ \"Орленок\" (Краснодарский край, Туапсинский район, п. Новомихайловский).                                                                                                     28 апреля - 01 мая 2017 г."]
["Класс 125 куб.см. 2Т \"Юноши\" (0910161811Г)"]
[]
["Место","Ст. №","Фамилия,  Имя","Разряд","Город (край, район, область)","Команда","Мото","I-й заезд",null,"II-й заезд",null,"Сум очк"]
[null,null,null,null,null,null,null,"мес","лич.","мес","лич."]
[null,null,null,null,null,null,null,"то","очк","то","очк"]
[1,701,"Проненко Святослав","кмс","г. Тимашевск, Краснодарский край","ГБУ КК \"РЦСП №1\"","КТМ",1,25,1,25,{"$f":"SUM(I11+K11)","v":50}]
[2,150,"Богданов Никита","II","г. Анапа, Краснодарский край","АНО СК \"Патриот\"","KTM",2,22,2,22,{"$f":"SUM(I12+K12)","v":44}]
[3,740,"Собур Владислав","I","г. Славянск-на-Кубани, Краснодарский край","АШ ДОСААФ","Yam",3,20,3,20,{"$f":"SUM(I13+K13)","v":40}]
[]
["Главный судья соревнований"]
["судья Всероссийской категории:                                  Г. И. Истратов (г. Москва; свидетельство МФР А 101)"]
[]
["Главный секретарь"]
["судья Всероссийской категории:                  А. Ю. Иванов (г. Москва, свидетельство МФР А 105; FIM 11245)      "]

{"sheet":"125 Ю 4Т ЮФО","index":7,"n_rows":19,"n_cols":12,"rows_kept":19,"cut":false,"hidden":false,"merged":[[14,5,14,11],[15,0,15,11],[17,5,17,11],[18,0,18,11],[7,4,9,4],[7,5,9,5],[7,6,9,6],[7,7,7,8],[7,9,7,10],[7,11,9,11],[7,0,9,0],[7,1,9,1],[7,2,9,2],[7,3,9,3],[5,0,5,11],[0,0,0,11],[1,0,1,11],[2,1,2,10],[3,0,3,11],[4,0,4,11]]}
["                                                                                                "]
["Показательные выступления в рамках Первенства Южного Федерального округа по мотокроссу 2017 года - II-й этап."]
[null,"(Код мотоспорта: 0910007511Я)"]
["ПРОТОКОЛ ЛИЧНОГО ЗАЧЕТА"]
["ВДЦ \"Орленок\" (Краснодарский край, Туапсинский район, п. Новомихайловский).                                                                                                     28 апреля - 01 мая 2017 г."]
["Класс 125 куб.см. 4Т \"Юниоры\" (0910161811Г)"]
[]
["Место","Ст. №","Фамилия,  Имя","Разряд","Город (край, район, область)","Команда","Мото","I-й заезд",null,"II-й заезд",null,"Сум очк"]
[null,null,null,null,null,null,null,"мес","лич.","мес","лич."]
[null,null,null,null,null,null,null,"то","очк","то","очк"]
[1,14,"Бурмистров Александр","II","п. Архипо-Осиповка, Краснодарский край","ДОСААФ","Husq",3,20,1,25,{"$f":"SUM(I11+K11)","v":45}]
[2,474,"Пульбери Максим","II","г. Анапа, Краснодарский край","лично","KTM",2,22,2,22,{"$f":"SUM(I12+K12)","v":44}]
[3,277,"Стрелков Алексей","I ","г. Славянск-на-Кубани, Краснодарский край","ГБУ КК \"РЦСП №1\"/Автошкола Славянск-на-Кубани","КТМ",1,25,"н/с",0,{"$f":"SUM(I13+K13)","v":25}]
[]
["Главный судья соревнований"]
["судья Всероссийской категории:                                  Г. И. Истратов (г. Москва; свидетельство МФР А 101)"]
[]
["Главный секретарь"]
["судья Всероссийской категории:                  А. Ю. Иванов (г. Москва, свидетельство МФР А 105; FIM 11245)      "]

{"sheet":"125 М Край","index":8,"n_rows":30,"n_cols":12,"rows_kept":30,"cut":false,"hidden":false,"merged":[[35,0,35,5],[7,6,9,6],[7,7,7,8],[7,9,7,10],[7,11,9,11],[31,0,31,3],[31,5,31,11],[7,0,9,0],[7,4,9,4],[32,0,32,5],[25,7,25,13],[26,0,26,13],[28,7,28,13],[29,0,29,13],[5,0,5,11],[7,1,9,1],[7,2,9,2],[7,3,9,3],[34,5,34,11],[7,5,9,5],[0,0,0,11],[1,0,1,11],[3,0,3,11],[4,0,4,11],[2,0,2,12]]}
["                                                                                                "]
["Чемпионат Краснодарского края по мотокроссу 2017 года - I-й этап."]
["(Код мотоспорта: 0910007511Я)"]
["ПРОТОКОЛ ЛИЧНОГО ЗАЧЕТА"]
["ВДЦ \"Орленок\" (Краснодарский край, Туапсинский район, п. Новомихайловский).         28 апреля - 01 мая 2017 г."]
["Класс 125 куб.см.   (0910161811Г/мужчины)"]
[]
["Место","Ст. №","Фамилия,  Имя","Разряд","Город (край, район, область)","Команда","Мото","I-й заезд",null,"II-й заезд",null,"Сум очк"]
[null,null,null,null,null,null,null,"мес","лич.","мес","лич."]
[null,null,null,null,null,null,null,"то","очк","то","очк"]
[1,134,"Каражов Алексей","кмс","г. Крымск, Краснодарский край","\"Крымск Бетон Пром\"","КТМ",1,25,1,25,{"$f":"SUM(I11+K11)","v":50}]
[2,56,"Кравцов Максим","кмс","с. Успенское, Краснодарский край","СК \"Ставрополье\"","KTM",2,22,2,22,44]
[3,277,"Стрелков Алексей","I ","г. Славянск-на-Кубани, Краснодарский край","ГБУ КК \"РЦСП №1\"","KTM",3,20,3,20,40]
[4,63,"Ким Никита","кмс","г. Углегорск, Сахалинская область","лично","КТМ",4,18,6,15,33]
[5,3,"Яровой Сергей","I ","г. Новочеркасск, Ростовская область","лично","Yam",10,11,4,18,29]
[6,939,"Петрачков Владислав","б/р","с. Успенское, Краснодарский край","лично","КТМ",8,13,5,16,29]
[7,37,"Прищепа Сергей","I ","г. Таганрог, Ростовская обл.","ДОСААФ Неклиновск УЦ с. Покровское","Kaw ",7,14,7,14,28]
[8,58,"Васильев Виталий","КМС","г. Красный Сулин, Ростовская обл.","СТК \"Фаворит\"","Suz ",6,15,9,12,27]
[9,190,"Горшколепов Владимир","б/р","г. Гулькевичи, Краснодарский край","ДОСААФ","Kaw ",9,12,8,13,25]
[10,46,"Погорелов Вячеслав","I ","г. Краснодар","лично","КТМ",12,9,11,10,19]
[11,27,"Велиуллаев Искандер","б/р","г. Крымск, Краснодарский край","\"Крымск Бетон Пром\"","Yam",11,10,12,9,19]
[12,150,"Богданов Никита","б/р","г. Анапа, Краснодарский край","АНО СК \"Патриот\"","КТМ",14,7,10,11,18]
[13,14,"Бурмистров Александр","I ","г. Архипо-Осиповка, Краснодарский край","ДОСААФ","Husq",5,16,"н/с",0,16]
[14,32,"Григорьев Григорий","б/р","г. Анапа, Краснодарский край","АНО СК \"Патриот\"","Yam",13,8,13,8,16]
[]
["Главный судья соревнований"]
["судья Всероссийской категории:                                  Г. И. Истратов (г. Москва; свидетельство МФР А 101)"]
[]
["Главный секретарь"]
["судья Всероссийской категории:                  А. Ю. Иванов (г. Москва, свидетельство МФР А 105; FIM 11245)      "]

{"sheet":"125 М ЮФО","index":9,"n_rows":23,"n_cols":12,"rows_kept":23,"cut":false,"hidden":false,"merged":[[5,0,5,11],[0,0,0,11],[1,0,1,11],[2,0,2,12],[3,0,3,11],[4,0,4,11],[18,7,18,13],[7,0,9,0],[7,1,9,1],[7,2,9,2],[7,3,9,3],[7,4,9,4],[7,5,9,5],[7,6,9,6],[7,7,7,8],[7,9,7,10],[7,11,9,11],[27,5,27,11],[28,0,28,5],[19,0,19,13],[21,7,21,13],[22,0,22,13],[24,0,24,3],[24,5,24,11],[25,0,25,5]]}
["                                                                                                "]
["Чемпионат Южного Федерального округа по мотокроссу 2017 года - I-й этап."]
["(Код мотоспорта: 0910007511Я)"]
["ПРОТОКОЛ ЛИЧНОГО ЗАЧЕТА"]
["ВДЦ \"Орленок\" (Краснодарский край, Туапсинский район, п. Новомихайловский).         28 апреля - 01 мая 2017 г."]
["Класс 125 куб.см.   (0910161811Г/мужчины)"]
[]
["Место","Ст. №","Фамилия,  Имя","Разряд","Город (край, район, область)","Команда","Мото","I-й заезд",null,"II-й заезд",null,"Сум очк"]
[null,null,null,null,null,null,null,"мес","лич.","мес","лич."]
[null,null,null,null,null,null,null,"то","очк","то","очк"]
[1,56,"Кравцов Максим","кмс","с. Успенское, Краснодарский край","СК \"Ставрополье\"","KTM",1,25,1,25,{"$f":"SUM(I11+K11)","v":50}]
[2,277,"Стрелков Алексей","I ","г. Славянск-на-Кубани, Краснодарский край","ГБУ КК \"РЦСП №1\"","KTM",2,22,2,22,44]
[3,3,"Яровой Сергей","I ","г. Новочеркасск, Ростовская область","лично","Yam",6,15,3,20,35]
[4,37,"Прищепа Сергей","I ","г. Таганрог, Ростовская обл.","ДОСААФ Неклиновск УЦ с. Покровское","Kaw ",5,16,4,18,34]
[5,58,"Васильев Виталий","КМС","г. Красный Сулин, Ростовская обл.","СТК \"Фаворит\"","Suz ",4,18,5,16,34]
[6,46,"Погорелов Вячеслав","I ","г. Краснодар","лично","КТМ",7,14,6,15,29]
[7,14,"Бурмистров Александр","I ","г. Архипо-Осиповка, Краснодарский край","ДОСААФ","Husq",3,20,"н/с",0,20]
[]
["Главный судья соревнований"]
["судья Всероссийской категории:                                  Г. И. Истратов (г. Москва; свидетельство МФР А 101)"]
[]
["Главный секретарь"]
["судья Всероссийской категории:                  А. Ю. Иванов (г. Москва, свидетельство МФР А 105; FIM 11245)      "]

{"sheet":"250 Край","index":10,"n_rows":28,"n_cols":12,"rows_kept":28,"cut":false,"hidden":false,"merged":[[32,0,32,5],[6,6,8,6],[6,7,6,8],[6,9,6,10],[6,11,8,11],[28,0,28,3],[28,5,28,11],[6,0,8,0],[6,4,8,4],[29,0,29,5],[23,7,23,13],[24,0,24,13],[26,7,26,13],[27,0,27,13],[5,0,5,11],[6,1,8,1],[6,2,8,2],[6,3,8,3],[31,5,31,11],[6,5,8,5],[0,0,0,11],[1,0,1,11],[3,0,3,11],[4,0,4,11],[2,0,2,12]]}
["                                                                                                "]
["Чемпионат Краснодарского края по мотокроссу 2017 года - I-й этап."]
["(Код мотоспорта: 0910007511Я)"]
["ПРОТОКОЛ ЛИЧНОГО ЗАЧЕТА"]
["ВДЦ \"Орленок\" (Краснодарский край, Туапсинский район, п. Новомихайловский).                       28 апреля - 01 мая 2017 г."]
["Класс 250 куб.см. (0910171811М/мужчины)"]
["Место","Ст. №","Фамилия,  Имя","Разряд","Город (край, район, область)","Команда","Мото","I-й заезд",null,"II-й заезд",null,"Сум Очк"]
[null,null,null,null,null,null,null,"мес","лич.","мес","лич."]
[null,null,null,null,null,null,null,"то","очк.","то","очк."]
[1,595,"Михайлов Евгений","МС","г. Краснодар","ГБУ КК \"РЦСП №1\"","Husq",1,25,1,25,{"$f":"SUM(I10+K10)","v":50}]
[2,444,"Бугреев Александр","МСМК","г. Камышлов, Челябинская область","лично","КТМ",2,22,2,22,44]
[3,791,"Золотцев Роман","КМС","г. Батайск, Ростовская область.","\"БАТАЙСК\"","Yam",3,20,3,20,40]
[4,434,"Каражов Виталий","мс","г. Крымск, Краснодарский край","\"Крымск Бетон Пром\"","KTM",4,18,4,18,36]
[5,248,"Горматько Максим","б/р","г. Новороссийск, Краснодарский край","МШ ДОСААФ","Yam",5,16,5,16,32]
[6,61,"Щербаев Артем","I","г. Сочи, Краснодарский край","ООО \"Вертикаль\"","КТМ",6,15,6,15,30]
[7,42,"Лукаш Юрий","МС","г. Волгоград","СК Волгоградской области","Hon",7,14,7,14,28]
[8,575,"Клоков Дмитрий","кмс","г. Астрахань","ДОСААФ России ФМС АО","Yam",8,13,8,13,26]
[9,113,"Волков Максим","кмс","г. Ростов-на-Дону","лично","Yam",9,12,9,12,24]
[10,129,"Курдюков Михаил","I","г. Элиста, Республика Калмыкия","СТК \"Искра\" ДОСААФ ","Hon",10,11,10,11,22]
[11,212,"Клышко Владимир","б/р","г. Анапа, Краснодарский край","лично","Kaw",11,10,11,10,20]
[12,800,"Васильченко Вячеслав","I","г. Астрахань","ДОСААФ России ФМС АО","КТМ",12,9,12,9,18]
[13,74,"Деружинский Сергей","б/р","г. Славянск-на-Кубани, Краснодарский край","АШ ДОСААФ","Hon",13,8,13,8,16]
[]
["Главный судья соревнований"]
["судья Всероссийской категории:                                  Г. И. Истратов (г. Москва; свидетельство МФР А 101)"]
[]
["Главный секретарь"]
["судья Всероссийской категории:                  А. Ю. Иванов (г. Москва, свидетельство МФР А 105; FIM 11245)      "]

{"sheet":"250 ЮФО","index":11,"n_rows":24,"n_cols":12,"rows_kept":24,"cut":false,"hidden":false,"merged":[[5,0,5,11],[0,0,0,11],[1,0,1,11],[2,0,2,12],[3,0,3,11],[4,0,4,11],[19,7,19,13],[6,0,8,0],[6,1,8,1],[6,2,8,2],[6,3,8,3],[6,4,8,4],[6,5,8,5],[6,6,8,6],[6,7,6,8],[6,9,6,10],[6,11,8,11],[27,5,27,11],[28,0,28,5],[20,0,20,13],[22,7,22,13],[23,0,23,13],[24,0,24,3],[24,5,24,11],[25,0,25,5]]}
["                                                                                                "]
["Чемпионат Южного Федерального округа по мотокроссу 2017 года - II-й этап."]
["(Код мотоспорта: 0910007511Я)"]
["ПРОТОКОЛ ЛИЧНОГО ЗАЧЕТА"]
["ВДЦ \"Орленок\" (Краснодарский край, Туапсинский район, п. Новомихайловский).                       28 апреля - 01 мая 2017 г."]
["Класс 250 куб.см. (0910171811М/мужчины)"]
["Место","Ст. №","Фамилия,  Имя","Разряд","Город (край, район, область)","Команда","Мото","I-й заезд",null,"II-й заезд",null,"Сум Очк"]
[null,null,null,null,null,null,null,"мес","лич.","мес","лич."]
[null,null,null,null,null,null,null,"то","очк.","то","очк."]
[1,595,"Михайлов Евгений","МС","г. Краснодар","ГБУ КК \"РЦСП №1\"","Husq",1,25,1,25,{"$f":"SUM(I10+K10)","v":50}]
[2,444,"Бугреев Александр","МСМК","г. Камышлов, Челябинская область","лично","КТМ",2,22,2,22,44]
[3,791,"Золотцев Роман","КМС","г. Батайск, Ростовская область.","\"БАТАЙСК\"","Yam",3,20,3,20,40]
[4,61,"Щербаев Артем","I","г. Сочи, Краснодарский край","ООО \"Вертикаль\"","КТМ",4,18,4,18,36]
[5,42,"Лукаш Юрий","МС","г. Волгоград","СК Волгоградской области","Hon",5,16,5,16,32]
[6,575,"Клоков Дмитрий","кмс","г. Астрахань","ДОСААФ России ФМС АО","Yam",6,15,6,15,30]
[7,113,"Волков Максим","кмс","г. Ростов-на-Дону","лично","Yam",7,14,7,14,28]
[8,129,"Курдюков Михаил","I","г. Элиста, Республика Калмыкия","СТК \"Искра\" ДОСААФ ","Hon",8,13,8,13,26]
[9,800,"Васильченко Вячеслав","I","г. Астрахань","ДОСААФ России ФМС АО","КТМ",9,12,9,12,24]
[]
["Главный судья соревнований"]
["судья Всероссийской категории:                                  Г. И. Истратов (г. Москва; свидетельство МФР А 101)"]
[]
["Главный секретарь"]
["судья Всероссийской категории:                  А. Ю. Иванов (г. Москва, свидетельство МФР А 105; FIM 11245)      "]

{"sheet":"МАСТЕР","index":12,"n_rows":41,"n_cols":12,"rows_kept":41,"cut":false,"hidden":false,"merged":[[37,0,37,13],[39,7,39,13],[40,0,40,13],[5,0,5,11],[6,1,8,1],[6,2,8,2],[6,3,8,3],[41,0,41,5],[6,6,8,6],[6,7,6,8],[6,9,6,10],[6,5,8,5],[6,11,8,11],[6,0,8,0],[6,4,8,4],[9,0,9,11],[17,0,17,11],[28,0,28,11],[36,7,36,13],[0,0,0,11],[1,0,1,11],[2,1,2,11],[3,0,3,11],[4,0,4,11]]}
["                                                                                                "]
["Кубок ФМС Краснодарского края по мотокроссу 2017 года - I-й этап."]
[null,"(Код мотоспорта:0910007511Я)"]
["ПРОТОКОЛ ЛИЧНОГО ЗАЧЕТА"]
["ВДЦ \"Орленок\" (Краснодарский край, Туапсинский район, п. Новомихайловский).                                                                           28 апреля - 01 мая 2017 г."]
["Класс: \"МАСТЕР\" (мужчины)"]
["Место","Ст. №","Фамилия,  Имя","Разряд","Город (край, район, область)","Команда","Мото","I-й заезд",null,"II-й заезд",null,"Сум Очк"]
[null,null,null,null,null,null,null,"мес","лич.","мес","лич."]
[null,null,null,null,null,null,null,"то","очк.","то","очк."]
["ГРУППА \"А\" (45 - 52 года):"]
[1,16,"Карнаух Алексей","кмс","г. Анапа, Краснодарский край","лично","Kaw",2,22,1,25,{"$f":"K11+I11","v":47}]
[2,700,"Ерошенко Иван","I ","г. Черкесск, Карачаево-Черкесская Республика","СТК \"Черкесск\"","Kaw",4,18,2,22,40]
[3,228,"Маклаков Олег","б/р","г. Сочи, Краснодарский край","лично","Yam",3,20,3,20,40]
[4,121,"Литвиненко Александр","б/р","г. Кореновск, Краснодарский край","лично","KTM",6,15,4,18,33]
[5,411,"Куликов Сергей","б/р","г. Новороссийск, Краснодарский край","СТО \"Авто Мастер\"","Kaw",5,16,5,16,32]
[6,83,"Драгалев Роман","б/р","г. Славянск-на-Кубани, Краснодарский край","\"Крымск Бетон Пром\"","Kaw",1,25,"сх",0,25]
[7,61,"Щербаев Олег","б/р","г. Сочи, Краснодарский край","ООО \"Вертикаль\"","Hon",7,14,"н/с",0,14]
["ГРУППА \"В\" (52 - 59 лет):"]
[1,9,"Кравцов Владимир","мс","п. Виноградный, Краснодарский край","лично","Kaw",2,22,2,22,{"$f":"K19+I19","v":44}]
[2,28,"Ануфриев Сергей","б/р","г. Геленджик, Краснодарский край","лично","Husq",1,25,4,18,43]
[3,15,"Косков Сергей","б/р","г. Верхняя Пышма, Свердловская область","лично","Hon",3,20,3,20,40]
[4,11,"Джеус Александр","МС","г. Краснодар","ВДЦ \"Орленок\"","Hon",10,11,1,25,36]
[5,42,"Ананьев Александр","б/р","ст. Северская, Краснодарский край","\"Мото Вест\"","Kaw",4,18,5,16,34]
[6,117,"Скляр Станислав","мс","г. Сочи, Краснодарский край","ЦТВС","Hon",5,16,6,15,31]
[7,525,"Георгиев Валерий","б/р","г. Краснодар","лично","KTM",6,15,8,13,28]
[8,90,"Беланов Яков","II","г. Лабинск, Краснодарский край","лично","Yam",9,12,7,14,26]
[9,144,"Мегреладзе Александр","I","г. Темрюк, Краснодарский край","\"ТЕМРЮК\"","KTM",7,14,9,12,26]
[10,171,"Бескоровайный Алексей","I","с. Молдаванское, Краснодарский край","\"г. Крымск\"","KTM",8,13,10,11,24]
["ГРУППА \"С\" (59 лет и старше):"]
[1,24,"Барков Юрий","б/р","г. Черкесск, Карачаево-Черкесская Республика","лично","Yam",1,25,2,22,{"$f":"K30+I30","v":47}]
[2,115,"Чернышов Александр","б/р","с. Красногвардейское,  Ставропольский край","СТК \"Гвардеец\"","Hon",4,18,1,25,43]
[3,18,"Фролов Михаил","кмс","г. Славянск-на-Кубани, Краснодарский край","\"Славянская АШ ДОСААФ\"","KTM",2,22,4,18,40]
[4,32,"Дегтярев Николай","кмс","г. Анапа, Краснодарский край","АНО СК \"Патриот\"","KTM",3,20,3,20,40]
[5,22,"Теряев Николай","мс","г. Ставрополь","СТК \"Мастер\"","Kaw",5,16,5,16,32]
[6,17,"Романов Владимир","б/р","с. Лермонтово, Краснодарский край","лично","Hon",6,15,6,15,30]
[]
["Главный судья соревнований"]
["судья Всероссийской категории:                                                                                                                      Г. И. Истратов (г. Москва; свидетельство МФР А 101)"]
[]
["Главный секретарь"]
["судья Всероссийской категории:                                                                                                       А. Ю. Иванов (г. Москва, свидетельство МФР А 105; FIM 11245)      "]